{"text_format":"3","workbook":"xlsx","n_sheets":3,"sheets":["Inventário de testamento","Relação de Bens","Relação de Passivos"],"not_rendered":{"defined_names":1},"read":"whole","date_system":"1900"}

{"sheet":"Inventário de testamento","index":0,"n_rows":45,"n_cols":35,"rows_kept":45,"merged":[[0,1,0,30],[0,31,0,39],[1,1,5,39],[6,1,6,6],[6,7,6,39],[7,1,7,6],[7,7,7,39],[9,1,9,6],[9,7,9,39],[10,1,10,6],[10,7,10,39],[11,1,11,6],[11,7,11,20],[11,21,11,26],[11,27,11,30],[11,31,11,33],[11,34,11,39],[12,1,12,6],[12,7,12,20],[12,21,12,26],[13,1,13,6],[13,7,13,20],[13,21,13,26],[14,1,14,6],[14,7,14,20],[14,21,14,26],[15,1,15,6],[17,1,17,39],[18,1,18,6],[18,7,18,12],[18,13,18,15],[18,16,18,18],[18,19,18,26],[18,27,18,31],[18,32,18,39],[19,1,19,6],[19,7,19,12],[19,13,19,15],[19,16,19,18],[19,19,19,26],[19,27,19,31],[19,32,19,39],[20,1,20,6],[20,7,20,12],[20,13,20,15],[20,16,20,18],[20,19,20,26],[20,27,20,31],[20,32,20,39],[21,1,21,6],[21,7,21,12],[21,13,21,15],[21,16,21,18],[21,19,21,26],[21,27,21,31],[21,32,21,39],[22,1,22,6],[22,7,22,12],[22,13,22,15],[22,16,22,18],[22,19,22,26],[22,27,22,31],[22,32,22,39],[23,1,23,6],[23,7,23,12],[23,13,23,15],[23,16,23,18],[23,19,23,26],[23,27,23,31],[23,32,23,39],[25,1,25,39],[26,1,26,6],[26,7,26,12],[26,13,26,18],[26,19,26,26],[26,27,26,31],[26,32,26,39],[27,1,27,6],[27,7,27,12],[27,13,27,18],[27,19,27,26],[27,27,27,31],[27,32,27,39],[28,1,28,6],[28,7,28,12],[28,13,28,18],[28,19,28,26],[28,27,28,31],[28,32,28,39],[29,1,29,6],[29,7,29,12],[29,13,29,18],[29,19,29,26],[29,27,29,31],[29,32,29,39],[30,1,30,6],[30,7,30,12],[30,13,30,18],[30,19,30,26],[30,27,30,31],[30,32,30,39],[31,1,31,6],[31,7,31,12],[31,13,31,18],[31,19,31,26],[31,27,31,31],[31,32,31,39],[33,1,33,12],[33,14,33,39],[34,1,34,12],[34,14,34,21],[34,22,34,25],[34,26,34,33],[34,34,34,39],[35,2,35,12],[35,14,35,21],[35,22,35,25],[35,26,35,33],[35,34,35,39],[36,2,36,12],[36,14,36,21],[36,22,36,25],[36,26,36,33],[36,34,36,39],[37,2,37,12],[37,14,37,21],[37,22,37,25],[37,26,37,33],[37,34,37,39],[38,2,38,12],[38,14,38,21],[38,22,38,25],[38,26,38,33],[38,34,38,39],[39,2,39,12],[39,14,39,21],[39,22,39,25],[39,26,39,33],[39,34,39,39],[40,2,40,12],[40,14,40,21],[40,22,40,25],[40,26,40,33],[40,34,40,39],[41,2,41,12],[41,14,41,21],[41,22,41,25],[41,26,41,33],[41,34,41,39],[42,2,42,12],[42,14,42,21],[42,22,42,25],[42,26,42,33],[42,34,42,38],[43,2,43,12],[43,14,43,21],[43,22,43,25],[43,26,43,33],[43,34,43,39],[44,2,44,12],[44,14,44,21],[44,22,44,25],[44,26,44,33],[44,34,44,39]]}
[]
[null,"Inventário de testamento"]
[]
[]
[]
[]
[null,"Nome do(s) Executor(es)",{"$nulls":5},"Artur Cunha"]
[null,"Informações de Contacto",{"$nulls":5},"Rua das Margaridas, n.º 6, 3º ESQ."]
[]
[null,"Nome do Falecido",{"$nulls":5},"António Mota"]
[null,"Rua",{"$nulls":5},"Rua das Margaridas N.º 67"]
[null,"Cidade",{"$nulls":5},"Mangualde",{"$nulls":13},"Distrito",{"$nulls":5},"LISBOA",{"$nulls":3},"Código Postal",null,null,98052]
[null,"NSS",{"$nulls":5},"AAA-GG-SSSS",{"$nulls":13},"Profissão",{"$nulls":5},"Dentista"]
[null,"Data de Nascimento:",{"$nulls":5},"1965-12-08",{"$nulls":13},"Local de Nascimento",{"$nulls":5},"LISBOA"]
[null,"Data de Falecimento",{"$nulls":5},{"$f":"TODAY()-3","v":"2022-05-09"},{"$nulls":13},"Local de Falecimento",{"$nulls":5},"LISBOA"]
[null,"Informações Adicionais"]
[]
[null,"  Cônjuge, Filhos e Outros Dependentes"]
[null,"Nome",{"$nulls":5},"Relação",{"$nulls":5},"Dependente",null,null,"Idade",null,null,"Endereço",{"$nulls":7},"Número de Telefone",{"$nulls":4},"E-mail"]
[null,"Joana Vaz",{"$nulls":5},"Representante Pessoal",{"$nulls":5},"Não",null,null,30]
[null,"Vitória Pereira",{"$nulls":5},"Cônjuge",{"$nulls":5},"Sim",null,null,35]
[null,"Alexandre Azevedo",{"$nulls":5},"Criança",{"$nulls":5},"Sim",null,null,12]
[]
[]
[]
[null,"Consultores Profissionais"]
[null,"Tipo de Consultor",{"$nulls":5},"Pessoa de Contacto",{"$nulls":5},"Empresa",{"$nulls":5},"Endereço",{"$nulls":7},"Número de Telefone",{"$nulls":4},"E-mail"]
[null,"Contabilista"]
[null,"Advogado/Notário"]
[null,"Outro"]
[]
[]
[]
[null,"  Lista de Verificação para Homologação Testamental",{"$nulls":12},"  Inventários de Homologação Testamental"]
[null,"    Itens da Lista de Verificação",{"$nulls":12},"Ativos de Homologação Testamental",{"$nulls":7},"Valor (€)",{"$nulls":3},"Passivos de Homologação Testamental",{"$nulls":7},"Valor (€)"]
[null,"✔","Última Vontade, Testamento ou outros documentos",{"$nulls":11},{"$f":"'Relação de Bens'!B12","v":"Contas Bancárias"},{"$nulls":7},{"$f":"'Relação de Bens'!G20","v":{"v":0,"d":"0.00 €"}},{"$nulls":3},{"$f":"'Relação de Passivos'!B11","v":"Hipotecas"},{"$nulls":7},{"$f":"'Relação de Passivos'!G18","v":{"v":0,"d":"0.00 €"}}]
[null,"✔","Contrato de arrendamento com depósito seguro e chaves",{"$nulls":11},{"$f":"'Relação de Bens'!B22","v":"Investimentos Pessoais"},{"$nulls":7},{"$f":"'Relação de Bens'!G30","v":{"v":0,"d":"0.00 €"}},{"$nulls":3},{"$f":"'Relação de Passivos'!B21","v":"Empréstimos Pessoais e Linhas de Crédito"},{"$nulls":7},{"$f":"'Relação de Passivos'!G28","v":{"v":0,"d":"0.00 €"}}]
[null,"✖","Palavra-passe para computadores e contas online",{"$nulls":11},{"$f":"'Relação de Bens'!B32","v":"Interesses Empresariais"},{"$nulls":7},{"$f":"'Relação de Bens'!G40","v":{"v":0,"d":"0.00 €"}},{"$nulls":3},{"$f":"'Relação de Passivos'!B31","v":"Interesses Empresariais"},{"$nulls":7},{"$f":"'Relação de Passivos'!G38","v":{"v":0,"d":"0.00 €"}}]
[null,"✔","Contratos de atos inter-vivos",{"$nulls":11},{"$f":"'Relação de Bens'!B42","v":"Imóveis"},{"$nulls":7},{"$f":"'Relação de Bens'!G50","v":{"v":0,"d":"0.00 €"}},{"$nulls":3},{"$f":"'Relação de Passivos'!B41","v":"Cartões de Crédito"},{"$nulls":7},{"$f":"'Relação de Passivos'!G48","v":{"v":0,"d":"0.00 €"}}]
[null,"✔","Seguro de vida, saúde/contra acidentes e apólices de seguros",{"$nulls":11},{"$f":"'Relação de Bens'!B52","v":"Planos de Pensões"},{"$nulls":7},{"$f":"'Relação de Bens'!G60","v":{"v":0,"d":"0.00 €"}},{"$nulls":3},{"$f":"'Relação de Passivos'!B51","v":"Outros Passivos"},{"$nulls":7},{"$f":"'Relação de Passivos'!G58","v":{"v":0,"d":"0.00 €"}}]
[null,"✔","Declarações financeiras",{"$nulls":11},{"$f":"'Relação de Bens'!B62","v":"Seguros"},{"$nulls":7},{"$f":"'Relação de Bens'!G70","v":{"v":0,"d":"0.00 €"}}]
[null,"✔","Declarações fiscais de rendimentos dos últimos três anos",{"$nulls":11},{"$f":"'Relação de Bens'!B72","v":"Empréstimos Privados e Hipotecas"},{"$nulls":7},{"$f":"'Relação de Bens'!G80","v":{"v":0,"d":"0.00 €"}}]
[null,"✔","Certificados de nascimento e óbito",{"$nulls":11},{"$f":"'Relação de Bens'!B82","v":"Participação noutros Imóveis e Fundos"},{"$nulls":7},{"$f":"'Relação de Bens'!G90","v":{"v":0,"d":"0.00 €"}}]
[null,"✖","Escrituras públicas, hipotecas e contratos de arrendamento",{"$nulls":11},{"$f":"'Relação de Bens'!B92","v":"Bens Pessoais e outros Ativos"},{"$nulls":7},{"$f":"'Relação de Bens'!G100","v":{"v":0,"d":"0.00 €"}}]
[null,"☐","Faturas e letras não pagas",{"$nulls":11},"Total de ativos",{"$nulls":7},{"$f":"'Relação de Bens'!G10","v":{"v":0,"d":"0.00 €"}},{"$nulls":3},"Passivos Totais",{"$nulls":7},{"$f":"SUM(AI36:AN44)","v":{"v":0,"d":"0.00 €"}}]

{"sheet":"Relação de Bens","index":1,"n_rows":100,"n_cols":8,"rows_kept":100,"merged":[[0,1,0,7],[1,1,5,7],[6,1,7,7],[11,1,11,7],[12,1,12,7],[21,1,21,7],[22,1,22,7],[31,1,31,7],[32,1,32,7],[41,1,41,7],[42,1,42,7],[51,1,51,7],[52,1,52,7],[61,1,61,7],[62,1,62,7],[71,1,71,7],[72,1,72,7],[81,1,81,7],[82,1,82,7],[91,1,91,7],[92,1,92,7]]}
[]
[null,"Relação de Bens"]
[]
[]
[]
[]
[null,"Utilize esta folha de cálculo para criar um inventário de ativos para homologação testamental. Terá de determinar o valor de mercado de cada ativo imobiliário na data do falecimento. Reveja todos os registos, incluindo extratos financeiros, apólices de seguro e declarações fiscais para obter valores de mercado. Também poderá ter de obter uma avaliação de itens pessoais (ou seja, obras de arte, coleções, antiguidades, etc.). Certifique-se de que inclui também quaisquer ativos externos no inventário, como bens imobiliários, valores mobiliários ou interesses comerciais no estrangeiro. Poderá desejar obter assistência profissional para obter um valor de mercado preciso para os ativos externos."]
[]
[]
[null,"Ativos Totais",{"$nulls":4},{"$f":"tblContasBancárias[[#Totals],[Saldo ]]+tblPersonalInvestments[[#Totals],[Valor de Mercado]]+tblBusinessInterests[[#Totals],[Valor ]]+tblRealEstate[[#Totals],[Preço de Mercado]]+tblPensionPlans[[#Totals],[Valor ]]+tblInsurance[[#Totals],[Valor em Numerário ]]+tblMortgages[[#Totals],[Saldo em Dívida ]]+tblTrusts[[#Totals],[Montante de Distribuição]]+tblOtherAssets[[#Totals],[Valor ]]","v":{"v":0,"d":"0.00 €"}}]
[]
[null,"Contas Bancárias"]
[null,"Liste todas as contas bancárias, incluindo dinheiro, cheques de viagem, ordens de pagamento e contas em bancos comerciais, bancos de aforro, cooperativas de crédito, etc. Inclua todos os nomes listados na conta e o valor real em numerário que se refere ao montante exato em dólares e do câmbio no momento do falecimento."]
[null,"Instituição Financeira ","Endereço","Telefone","Número da Conta","Tipo de Conta","Saldo ","Notas"]
[]
[]
[]
[]
[]
[null,"Total",{"$nulls":4},{"$f":"SUBTOTAL(109,tblContasBancárias[[Saldo ]])","v":{"v":0,"d":"0.00 €"}}]
[]
[null,"Investimentos Pessoais"]
[null,"Enumere contas em numerário, contas-margem, Contas Poupança Isentas de Impostos, Planos de Poupança Reforma Registados (RRSPs), Fundos de Reforma Registados (RRIFs), RRIFs Bloqueados, RRSPs Bloqueados Fundos de Rendimento Vitalício, Fundos de Rendimento de Reforma Prescritos, Planos de Poupança para Educação Registados, anuidades, etc."]
[null,"Empresa","Endereço","Telefone","Número da Conta","Beneficiário","Valor de Mercado","Notas"]
[]
[]
[]
[]
[]
[null,"Total",{"$nulls":4},{"$f":"SUBTOTAL(109,tblPersonalInvestments[Valor de Mercado])","v":{"v":0,"d":"0.00 €"}}]
[]
[null,"Interesses Empresariais"]
[null,"Enumere todos os interesses comerciais, incluindo sociedades unipessoais, práticas profissionais, sociedades, parcerias, empresas e parcerias de responsabilidade limitada, joint ventures e outras entidades empresariais não negociáveis em bolsa. "]
[null,"Nome da Empresa","Endereço","Telefone","Contacto","Tipo","Valor ","Notas"]
[]
[]
[]
[]
[]
[null,"Total",{"$nulls":4},{"$f":"SUBTOTAL(109,tblBusinessInterests[[Valor ]])","v":{"v":0,"d":"0.00 €"}}]
[]
[null,"Imóveis"]
[null,"Enumere qualquer propriedade real da qual o Falecido e/ou o cônjuge sobrevivo do Falecido seja proprietário, coproprietário ou em relação à qual tenha um qualquer interesse, incluindo propriedades adquiridas em urbanizações recreativas e em regime de time-sharing. Obtenha cópias das escrituras. Forneça uma descrição dos imóveis com o respetivo endereço físico. Liste o valor de mercado justa da propriedade, com base na avaliação mais recente do assessor fiscal."]
[null,"Endereço","Título detido por","Telefone","Contacto","Preço de Compra","Preço de Mercado","Notas"]
[]
[]
[]
[]
[]
[null,"Total",{"$nulls":3},{"$f":"SUBTOTAL(109,tblRealEstate[Preço de Compra])","v":{"v":0,"d":"0.00 €"}},{"$f":"SUBTOTAL(109,tblRealEstate[Preço de Mercado])","v":{"v":0,"d":"0.00 €"}}]
[]
[null,"Planos de Pensões"]
[null,"Enumere os benefícios definidos, compras em numerário ou contribuições definidas, DPSP ou RRSP de grupo, etc."]
[null,"Empresa","Telefone","Tipo de Plano","Beneficiário","E-mail","Valor ","Notas"]
[]
[]
[]
[]
[]
[null,"Total",{"$nulls":4},{"$f":"SUBTOTAL(109,tblPensionPlans[[Valor ]])","v":{"v":0,"d":"0.00 €"}}]
[]
[null,"Seguros"]
[null,"Inclua atos inter-vivos, apólices de seguros de vida com beneficiários nomeados e contas de investimento transferidas após a morte, como ativos não sucessórios. Se o tribunal inquirir sobre estes ativos, o executor poderá referenciar facilmente a lista de ativos não sucessórios e explicar a ausência dos mesmos do inventário de homologação testamental."]
[null,"Emissor","Número da Apólice","Telefone","Beneficiário","Valor Nominal ","Valor em Numerário ","Notas"]
[]
[]
[]
[]
[]
[null,"Total",{"$nulls":3},{"$f":"SUBTOTAL(109,tblInsurance[[Valor Nominal ]])","v":{"v":0,"d":"0.00 €"}},{"$f":"SUBTOTAL(109,tblInsurance[[Valor em Numerário ]])","v":{"v":0,"d":"0.00 €"}}]
[]
[null,"Empréstimos Privados e Hipotecas"]
[null,"Enumere empréstimos privados e hipotecas em que a pessoa falecida era o mutuante."]
[null,"Nome do Mutuário","Endereço","Telefone","Tipo","Montante Original","Saldo em Dívida ","Notas"]
[]
[]
[]
[]
[]
[null,"Total",{"$nulls":3},{"$f":"SUBTOTAL(109,tblMortgages[Montante Original])","v":{"v":0,"d":"0.00 €"}},{"$f":"SUBTOTAL(109,tblMortgages[[Saldo em Dívida ]])","v":{"v":0,"d":"0.00 €"}}]
[]
[null,"Participação noutros Imóveis e Fundos"]
[null,"Enumere os ativos registados no nome da pessoa falecida por conta de outrem (por exemplo, ativos detidos pela pessoa falecida enquanto administrador ou ativos detidos ao abrigo de uma Procuração)."]
[null,"Nome do Imóvel/Fundo","Nome do Executor/Administrador","Telefone","Endereço","E-mail","Montante de Distribuição","Notas"]
[]
[]
[]
[]
[]
[null,"Total",{"$nulls":4},{"$f":"SUBTOTAL(109,tblTrusts[Montante de Distribuição])","v":{"v":0,"d":"0.00 €"}}]
[]
[null,"Bens Pessoais e outros Ativos"]
[null,"Enumere todos os itens pessoais, por exemplo, automóveis, joalharia, obras de arte, antiguidades, mobiliário. Inclua itens que possam ter sido mantidos num compartimento de cofre-forte ou em custódia."]
[null,"Descrição do Item","Localização","Telefone","Contacto","Beneficiário","Valor ","Notas"]
[]
[]
[]
[]
[]
[null,"Total",{"$nulls":4},{"$f":"SUBTOTAL(109,tblOtherAssets[[Valor ]])","v":{"v":0,"d":"0.00 €"}}]

{"sheet":"Relação de Passivos","index":2,"n_rows":58,"n_cols":8,"rows_kept":58,"merged":[[0,1,0,7],[1,1,5,7],[6,1,6,7],[10,1,10,7],[20,1,20,7],[30,1,30,7],[40,1,40,7],[50,1,50,7]]}
[]
[null,"Relação de Passivos"]
[]
[]
[]
[]
[null,"Utilize esta folha de cálculo para registar os detalhes do passivo do imóvel, tanto a nível interno como externo. Irá necessitar de uma avaliação de cada passivo na data do falecimento."]
[]
[null,"Ativos Totais",{"$nulls":4},{"$f":"SUM(G18,G28,G38,G48,G58)","v":{"v":0,"d":"0.00 €"}}]
[]
[null,"Hipotecas"]
[null,"Instituição Financeira ","Endereço","Telefone","Título Detido Por","Número da Conta","Saldo ","Notas"]
[]
[]
[]
[]
[]
[null,"Total",{"$nulls":4},{"$f":"SUBTOTAL(109,tblContasBancárias2[[Saldo ]])","v":{"v":0,"d":"0.00 €"}}]
[]
[]
[null,"Empréstimos Pessoais e Linhas de Crédito"]
[null,"Instituição Financeira","Endereço","Telefone"," Número da Conta","Tipo","Saldo ","Notas"]
[]
[]
[]
[]
[]
[null,"Total",{"$nulls":4},{"$f":"SUBTOTAL(109,tblInvestimentosPessoais3[[Saldo ]])","v":{"v":0,"d":"0.00 €"}}]
[]
[]
[null,"Interesses Empresariais"]
[null,"Nome da Empresa","Endereço"," Telefone"," Contacto","Tipo","Valor ","Notas"]
[]
[]
[]
[]
[]
[null,"Total",{"$nulls":4},{"$f":"SUBTOTAL(109,tblJurosEmpresariais4[[Valor ]])","v":{"v":0,"d":"0.00 €"}}]
[]
[]
[null,"Cartões de Crédito"]
[null,"Entidade Emissora do Cartão de Crédito","Endereço da Empresa","Telefone","Número do Cartão","Data de Expiração ","Saldo ","Notas"]
[]
[]
[]
[]
[]
[null,"Total",{"$nulls":3},{"$f":"SUBTOTAL(109,tblRealEstate5[[Data de Expiração ]])","v":{"v":0,"d":"0.00 €"}},{"$f":"SUBTOTAL(109,tblRealEstate5[[Saldo ]])","v":{"v":0,"d":"0.00 €"}}]
[]
[]
[null,"Outros Passivos"]
[null,"Descrição do Item","Localização","Telefone","Contacto","Beneficiário","Valor ","Notas"]
[]
[]
[]
[]
[]
[null,"Total",{"$nulls":4},{"$f":"SUBTOTAL(109,tblPensionPlans6[[Valor ]])","v":{"v":0,"d":"0.00 €"}}]